Cogmind - Beta 10.2 @@@ ROGUE MODE // 2021.01.26 @ 18:41:07 Player: mr_sack Result: Destroyed by G-34 Mercenary with Small Laser Performance ------------- Evolutions (0) 0 Regions Visited (1) 200 Robots Destroyed (14) 70 Value Destroyed (283) 283 Prototype IDs (0) 0 Alien Tech Used (0) 0 Bonus (0) 0 TOTAL SCORE: 553 Bonus ------- None Cogmind --------- Core Integrity 0/250 Matter 290/300 Energy 212/250 System Corruption 2% Temperature Cool (6) Movement Core (250) Ox4 Location -10/Materials Parts ------- > --- POWER (1) -------- Ion Engine > --- PROPULSION (2) --- (None) > --- UTILITY (2) ------ Medium Storage Unit Visual Processing Unit > --- WEAPON (2) ------- Mining Claw > --- INVENTORY (8) ---- Ion Engine Light Treads Compact Wheel Sensor Array Signal Interpreter Improved Terrain Scanner Targeting Computer Medium Laser Peak State ------------ > --- POWER ------------ Ion Engine > --- PROPULSION ------- Light Treads Wheel > --- UTILITY ---------- Small Storage Unit Improved Terrain Scanner > --- WEAPON ----------- EM Pulse Gun Medium Laser > --- INVENTORY -------- Light Ion Engine Light Treads Compact Wheel Medium Laser [Rating: 8] Favorites ----------- Power Ion Engine Engine Ion Engine Propulsion Light Treads Treads Light Treads Wheel Wheel Utility Medium Storage Unit Device Improved Terrain Scanner Storage Medium Storage Unit Processor Visual Processing Unit Weapon Medium Laser Energy Gun Medium Laser Slashing Weapon Mining Claw Build | -11 -10 ------- Run | Scr Mat Slots Evolved . | . . Power . | . . Propulsion . | . . Utility . | . . Weapon . | . . Parts Attached 20 | 9 11 Power 2 | 1 1 Engine 2 | 1 1 Core . | . . Reactor . | . . Propulsion 3 | 2 1 Treads 2 | 1 1 Leg . | . . Wheel 1 | 1 . Hover . | . . Flight . | . . Utility 5 | 3 2 Device 1 | 1 . Storage 2 | 1 1 Processor 2 | 1 1 Hackware . | . . Protection . | . . Artifact . | . . Weapon 10 | 3 7 Energy Gun 9 | 3 6 Energy Cannon . | . . Ballistic Gun . | . . Ballistic Cannon . | . . Launcher . | . . Special Weapon . | . . Impact Weapon . | . . Slashing Weapon 1 | . 1 Piercing Weapon . | . . Special Melee Weapon . | . . Unidentified Prototypes . | . . Parts Lost 6 | . 6 Power 1 | . 1 Propulsion 2 | . 2 Utility . | . . Weapon 3 | . 3 Highest Loss Streak 6 | . 6 Average Slot Usage (%) 95 | . 95 Engine 13 | . 13 Treads 13 | . 13 Wheel 12 | . 12 Device 1 | . 1 Storage 14 | . 14 Processor 11 | . 11 Energy Gun 25 | . 25 Naked Turns . | . . Heaviest Build 18 | 14 18 Greatest Support 20 | 20 20 Greatest Overweight (x) 4 | 1 4 Average Overweight (x) . | . . Largest Inventory Capacity 8 | 6 8 Average Capacity 7 | 5 7 Most Carried 8 | 4 8 Average Carried 6 | 2 7 Final Capacity 8 | 6 8 Final Carried 8 | 4 8 Class Distribution -------------------- 70% | Mutant 29% | Scavenger-Mutant Dominant Class ---------------- Mutant | -10/Materials Resources | -11 -10 ----------- Run | Scr Mat Matter Collected 370 | 240 130 Remotely . | . . Salvage Created 453 | 32 421 Parts 33 | 10 23 Haulers Intercepted 2 | . 2 Recyclers Shooed 1 | 1 . Parts Field Recycled . | . . Retrieved Matter . | . . Parts Self-Destructed . | . . Prevented . | . . Kills | -11 -10 ------- Run | Scr Mat Combat Hostiles Destroyed 8 | . 8 Guns 5 | . 5 AOE 3 | . 3 Classes Destroyed 5 | 1 4 Tunneler 2 | 2 . Hauler 2 | . 2 Watcher 2 | . 2 Swarmer 3 | . 3 Grunt 5 | . 5 Best Kill Streak 4 | 1 4 Combat Bots Only 4 | . 4 Max Kills in Single Turn 2 | 1 2 Gunslinging . | . . Exploded 2 | . 2 Melee . | . . Uniques/NPCs Destroyed . | . . Combat | -11 -10 -------- Run | Scr Mat Damage Taken 812 | . 812 Core 261 | . 261 Absorbed by Shields . | . . Core Remaining (%) 100 | 100 . Volleys Fired 53 | 5 48 Largest 2 | 2 2 Hottest 90 | 90 90 Shots Fired 98 | 10 88 Gun 98 | 10 88 Cannon . | . . Launcher . | . . Special . | . . Kinetic . | . . Thermal 60 | 5 55 Explosive . | . . Electromagnetic 38 | 5 33 Robot Hit Streak 13 | 4 13 Robot Miss Streak 2 | 1 2 Penetration Max . | . . Secondary Targets 1 | . 1 Max Gunslinging Chain 1 | . 1 Shots Hit Robots 61 | 7 54 Core Hits 21 | 2 19 Critical Hits . | . . Critical Kills . | . . Critical Parts Destroyed . | . . Melee Attacks 7 | . 7 Impact . | . . Slashing 7 | . 7 Piercing . | . . Sneak Attacks . | . . Combat Hostiles . | . . Follow-up Attacks . | . . Damage Inflicted 924 | 107 817 Guns 732 | 107 625 Cannons . | . . Explosions 116 | . 116 Melee 76 | . 76 Ramming . | . . Kinetic . | . . Thermal 454 | 50 404 Explosive . | . . Electromagnetic 394 | 57 337 Impact . | . . Slashing 76 | . 76 Piercing . | . . Highest Corruption 2 | . 2 Average Corruption 2 | . 2 Corruption Purged . | . . Effects 6 | . 6 Message Errors 3 | . 3 Energy Discharges 1 | . 1 Targeting Errors 1 | . 1 Weapon Failures 1 | . 1 Overload Shots . | . . Overflow Damage . | . . Projectiles . | . . Explosions . | . . Melee . | . . Knockbacks . | . . Impact . | . . Kinetic . | . . Secondary . | . . Self-Inflicted Damage 96 | . 96 Shots 3 | . 3 Rammed . | . . Targets Rammed . | . . Kicked . | . . Crushed . | . . Highest Temperature 252 | 60 252 Average Temperature 90 | 30 96 Received Heat Transfer 354 | . 354 Effects 1 | . 1 Energy Bleed 1 | . 1 Siege Activations . | . . Robots Corrupted . | . . Combat Hostiles . | . . Parts Fried 2 | . 2 Impact Corruptions . | . . Robots Melted . | . . Combat Hostiles . | . . Parts Melted 2 | . 2 Heat Transferred 878 | 148 730 Parts Sabotaged . | . . Parts Stolen . | . . Parts Stripped . | . . Power Chain Reactions 2 | . 2 Missiles Intercepted . | . . Alert | -11 -10 ------- Run | Scr Mat Peak Influence 270 | 10 270 Initial 6 | . 6 Average 117 | 3 138 Maximum Alert Level 1 | . 1 Low Security (%) 64 | 100 58 Level 1 35 | . 41 Level 2 . | . . Level 3 . | . . Level 4 . | . . Level 5 . | . . High Security . | . . Max Security . | . . Squads Dispatched 2 | . 2 Investigation 2 | . 2 Extermination . | . . Reinforcement . | . . Assault . | . . Garrison . | . . Intercept . | . . Construction Impeded . | . . Haulers Reinforced . | . . Stealth | -11 -10 --------- Run | Scr Mat Distress Signals 1 | . 1 Communications Jammed . | . . Distress Signals . | . . Times Spotted 13 | . 13 Peak Tracking Total 4 | . 4 Tactical Retreats 1 | . 1 Traps | -11 -10 ------- Run | Scr Mat Traps Triggered 1 | . 1 Indirectly . | . . Trap Hack Attempts . | . . Triggered . | . . Disarmed . | . . Reprogrammed . | . . Reused . | . . Traps Extracted . | . . Installed . | . . Triggered . | . . Machines | -11 -10 ---------- Run | Scr Mat Machines Disabled 2 | . 2 Max in Single Turn 1 | . 1 Machines Sabotaged . | . . Garrisons Compromised . | . . Overloaded Fab Kills . | . . Fab Network Shutdowns . | . . Hacking | -11 -10 --------- Run | Scr Mat Machines Accessed 3 | . 3 Terminals 3 | . 3 Fabricators . | . . Repair Stations . | . . Recycling Units . | . . Scanalyzers . | . . Garrison Access . | . . Total Hacks 8 | . 8 Successful 3 | . 3 Failed 5 | . 5 Catastrophic 1 | . 1 Database Lockouts . | . . Manual 8 | . 8 Terminals 8 | . 8 Fabricators . | . . Repair Stations . | . . Recycling Units . | . . Scanalyzers . | . . Garrison Access . | . . Terminal Hacks 3 | . 3 Robot Analysis 2 | . 2 Branch Access Points 1 | . 1 Fabricator Hacks . | . . Repair Station Hacks . | . . Recycling Unit Hacks . | . . Scanalyzer . | . . Garrison Access Hacks . | . . Unauthorized Hacks . | . . Terminals . | . . Fabricators . | . . Repair Stations . | . . Recycling Units . | . . Scanalyzers . | . . Garrison Access . | . . Data Cores Recovered . | . . Used . | . . Hacking Detections 3 | . 3 Full Trace Events 2 | . 2 Feedback Events . | . . Feedback Blocked . | . . Robot Schematics Acquired . | . . Robots Built . | . . Matter . | . . Time . | . . Total Robot Build Rating . | . . Part Schematics Acquired . | . . Parts Built . | . . Matter . | . . Time . | . . Total Part Build Rating . | . . Parts Repaired . | . . Time . | . . Parts Recycled . | . . Recycled Matter . | . . Retrieved Matter . | . . Retrieved Components . | . . Parts Scanalyzed . | . . Part Schematics Acquired . | . . Parts Damaged . | . . Bothacking | -11 -10 ------------ Run | Scr Mat Used RIF Installer . | . . Robots Hacked . | . . Non-combat . | . . Combat . | . . Robot Hacks Applied . | . . Relay Couplers Released . | . . Robots Rewired . | . . Allies Hacked . | . . Hacks Repelled . | . . Allies | -11 -10 -------- Run | Scr Mat Total Allies . | . . Largest Group . | . . Highest-Rated Group . | . . Highest-Rated Ally . | . . Total Orders . | . . Ally Attacks . | . . Total Damage . | . . Kills . | . . Allies Corrupted . | . . Allies Melted . | . . Intel | -11 -10 ------- Run | Scr Mat Robot Analysis Total 2 | . 2 Derelict Logs Recovered . | . . Drone Launches . | . . Drone Recoveries . | . . Exploration | -11 -10 ------------- Run | Scr Mat Turns Passed 735 | 116 619 Spaces Moved 416 | 97 319 Core 19 | 8 11 Treads 96 | 1 95 Legs . | . . Wheels 301 | 88 213 Hover . | . . Flight . | . . Fastest Speed 50 | 50 90 Average Speed 108 | 86 114 Slowest Speed 250 | 160 250 Overloaded Moves . | . . Propulsion Burnouts . | . . Robots Hopped . | . . Cave-ins Triggered . | . . Exploration Rate (%) 21 | 4 39 Regions Visited 1 Branch Regions . Pre-discovered Areas . | . . Known Exits Taken . | . . Unknown Exits Taken 1 | 1 . Scrap Searched . | . . Spaces Dug . | . . Terrain Destroyed 4 | . 4 Melee . | . . Projectile . | . . AOE 4 | . 4 Terrain Rammed . | . . Walls Destroyed . | . . Machines Disabled . | . . Actions | -11 -10 --------- Run | Scr Mat Total 588 | 115 473 Wait 76 | . 76 Move 415 | 96 319 Hop . | . . Pick Up 8 | 4 4 Fast Attach 13 | 8 5 Attach 1 | . 1 Detach 2 | 1 1 Swap 6 | 1 5 Drop 7 | . 7 Fire 53 | 5 48 Melee 7 | . 7 Ram . | . . Kick . | . . Crush . | . . Escape Stasis . | . . Rewire . | . . Trap . | . . Miscellaneous . | . . Route ------- -11/Scrapyard -10/Materials (discovered 3 exits: [*Mat] / Min x2) History --------- Turn | Location | Event 29 | -11/Scrapyard | Discovered new exit (range 15) 117 | -11/Scrapyard | Entered Materials 131 | -10/Materials | Identified exit to Mines 312 | -10/Materials | Build established: Mutant 567 | -10/Materials | Discovered new exit (range 5) 690 | -10/Materials | Core integrity fell below 50% 725 | -10/Materials | Core integrity fell below 20% 736 | -10/Materials | Destroyed by G-34 Mercenary with Small Laser Last Messages --------------- weight for maintaining high flight speeds. Swarmer squads are particularly susceptible to explosives. 00612_ ALERT: Suspicious activity at Terminal M007. Dispatching Investigation squad. 00640_ Neutrino Reactor explodes. 00640_ U-05 Engineer lays Concrete. 00667_ G-34 Mercenary destroyed. 00675_ Sml. Laser destroyed. 00677_ Med. Laser destroyed. 00679_ Acquired Sml. Laser. 00683_ R-06 Scavenger collects Aluminum Leg. 00685_ Wheel destroyed. 00694_ Overheating: Energy bleed (-25). 00695_ Ion Engine destroyed. 00700_ Acquired Mining Claw. 00704_ Lgt. Treads destroyed. 00707_ Sml. Laser destroyed. 00717_ K-01 Serf collects debris. 00721_ Acquired Ion Engine. 00728_ K-01 Serf cleans the Purification Channel. Map ----- +----------------------------------------------------+ | ??????? ????????????????? #""" #????????????? | | ??????? ?????????????"?"??#""" #????????????? | | ??????" ?????????????? ??# #????????????? | | ??????" ????????#???###+### #????????????? | | ??????" ????????????# ###+####????????????? | | #######+#???????????# #????????????? | | ^^ # #???????????# #????????????? | | # #??????#???## ! #????????????? | | # ##?????????#T !! ####????????????? | | # ############# ##??????????????? | | !# "#??????????????? | | """* # % T#??????????????? | | """ [#= "#??????????????? | | """"%%#% ##??????????????? | | """" *+ #??????? #?????? | | """ #= ####### #?????? | | # ######## !! #?????? | | ####### # # !! #?????? | | ??????#% #""" + !! #?????? | | ####### #""" #+##+###### ### #?????? | | #""" # # #?? #?????? | | # # # ##?? #?????? | | % # # # ##?? #?????? | | ####### ######## #%#???? +?????? | | ??????# #??????###########+######## #?????? | | ??????# #??????????# g@ g #?? #?????? | | ?????## ########???# """ """ #??? ?????? | | ??????# #???# """"""""" #???? ????? | | ??????# #???# """"" " #????? ????? | | ??????# #???# r k #???>???????? | | ????######+### #???##########+###???????????? | | ????# # #????????????????????????????? | | ????# # < #????????????????????????????? | | ????# # #????????????????????????????? | | ????# #####????????????????????????????? | | ????# #????????????????????????????????? | | ????# #????????????????????????????????? | | ????# #????????????????????????????????? | | ????# #????????????????????????????????? | | ????# #????????????????????????????????? | | ????##########????????????????????????????????? | | ??????????????????????????????????????????????? | | ??????????????????????????????????????????????? | | ??????????????????????????????????????????????? | | ??????????????????????????????????????????????? | | ??????????????????????????????????????????????? | | | | | | | | | +----------------------------------------------------+ Best States ------------- Heat Dissipation 25 Energy Generation 10 Energy Capacity 250 Matter Stores 300 Matter Capacity 300 Sight Range 18 Terrain Scan Range 16 Terrain Scan Density 60 Evasion (%) 44 Recoil Reduction 1 Item Schematics ----------------- None Robot Schematics ------------------ None Fabricated ------------ Nothing Alien Tech Used ----------------- None Achievements -------------- None Challenges ------------ None Game ------ Seed OmegaRefineryScythe Manual? 0 Play Time 00:21:10 Cumulative 62.2 hours Start 2021.01.26 @ 18:17:41 End 2021.01.26 @ 18:41:07 Sessions 1 Manual Loads 0 Difficulty Rogue Special Mode None Game No. 47 Rogue 42 Adventurer 5 Explorer 0 Win Type - Total 0 Types 0/0/0/0/0/0/0/0/0 Lore% 32 Gallery% 39 Achievement% 28 Wizard Run 0 Options --------- ASCII 0 Keyboard 1 Movement Arrows Keybinds 0 Fullscreen 1 Font 18/SmallcapsGlow Map View 76x50 Tactical HUD 1 Map Filters NONE Filters NONE Steam 1 RUN: b8eccb76-24a1-490d-a36a-36ade19ac300